bitfinex/quotes_BTCUSD_20220205
["timestamp","ask_amount","ask_price","bid_price","bid_amount"]
[1644062442554,0.04214186,41499.0,41498.0,0.05356268]
[1644062443354,0.04214186,41499.0,41498.0,0.33240655]
[1644062443554,0.04214186,41499.0,41498.0,0.405108]
[1644062443754,0.04214186,41499.0,41498.0,0.33240655]
[1644062443957,0.04214186,41499.0,41498.0,0.05356268]
[1644062444154,0.04214186,41499.0,41498.0,0.42724826]
[1644062446205,0.04214186,41499.0,41498.0,0.47162575]
[1644062446608,0.04214186,41499.0,41498.0,0.52440476]
[1644062447208,0.04214186,41499.0,41498.0,0.85654576]
[1644062450360,0.00068004,41501.0,41500.0,0.332141]
[1644062450559,0.00068004,41501.0,41500.0,0.83115856]
[1644062450762,0.023,41509.0,41500.0,0.60009878]
[1644062450963,0.02571903,41509.0,41504.0,0.0954029]
[1644062451163,0.02571903,41509.0,41505.0,0.53002536]
[1644062451363,0.0001,41506.0,41505.0,0.75149423]
[1644062451560,0.002,41512.0,41505.0,0.46373072]
[1644062451761,0.002,41512.0,41511.0,0.14328726]
[1644062452159,0.002,41512.0,41511.0,0.07058581]
[1644062452359,0.002,41512.0,41511.0,0.14896558]
[1644062452959,0.002,41512.0,41511.0,0.07626413]
[1644062453602,0.002,41512.0,41511.0,0.14896558]
[1644062454002,0.002,41512.0,41511.0,0.07626413]
[1644062454202,0.002,41512.0,41511.0,0.02837977]
[1644062454405,0.002,41512.0,41511.0,0.00567832]
[1644062454610,0.002,41512.0,41511.0,0.02837977]
[1644062454804,0.002,41512.0,41511.0,0.00567832]
[1644062455003,0.0501,41512.0,41511.0,0.00567832]
[1644062456957,0.30691032,41512.0,41511.0,0.05005581]
[1644062457353,0.90771032,41512.0,41511.0,0.05005581]
[1644062457553,0.90771032,41512.0,41511.0,0.10283482]
[1644062459356,0.90634924,41512.0,41511.0,0.10283482]
[1644062461700,0.64953892,41512.0,41511.0,0.10283482]
[1644062465354,0.94983557,41512.0,41511.0,0.10283482]
[1644062469420,0.69953892,41512.0,41511.0,0.10283482]
[1644062469718,0.04873892,41512.0,41511.0,0.10283482]
[1644062470918,0.31926486,41512.0,41511.0,0.10283482]
[1644062471120,0.04873892,41512.0,41511.0,0.10283482]
[1644062471718,0.31944922,41512.0,41511.0,0.10283482]
[1644062474660,0.04873892,41512.0,41511.0,0.10283482]
[1644062474863,0.36655007,41512.0,41511.0,0.10283482]
[1644062475061,0.120511,41509.0,41507.0,0.00071768]
[1644062475267,0.95482224,41508.0,41507.0,0.00071768]
[1644062475702,1.29918931,41508.0,41507.0,0.00071768]
[1644062476102,1.29918931,41508.0,41503.0,0.02270145]
[1644062476303,0.120506,41506.0,41505.0,0.00067607]
[1644062476504,1.04961551,41506.0,41505.0,0.00067607]
[1644062477303,1.10986851,41506.0,41503.0,0.02270145]
[1644062477503,1.11021702,41506.0,41503.0,0.00067609]
[1644062477704,0.06025198,41504.0,41503.0,0.00067609]
[1644062477909,0.37673556,41504.0,41503.0,0.00067609]
[1644062478306,1.02753556,41504.0,41503.0,0.00067609]
[1644062478507,0.060264,41503.0,41498.0,0.02041621]
[1644062478706,0.060266,41501.0,41498.0,0.02041621]
[1644062478908,0.08137961,41499.0,41498.0,0.02041621]
[1644062479206,0.35806791,41499.0,41494.0,0.3722]
[1644062479456,0.35806791,41499.0,41496.0,0.02270145]
[1644062479457,0.41833691,41499.0,41496.0,0.02270145]
[1644062479854,0.53886591,41499.0,41496.0,0.02270145]
[1644062480152,0.12052909,41498.0,41496.0,0.22058581]
[1644062480351,0.12052909,41498.0,41497.0,0.07270145]
[1644062480750,0.16862909,41498.0,41497.0,0.07270145]
[1644062482153,0.0481,41498.0,41497.0,0.07270145]
[1644062482751,0.18079446,41500.0,41497.0,0.07270145]
[1644062482950,0.18079446,41500.0,41499.0,0.07270145]
[1644062482951,0.120528,41500.0,41499.0,0.07270145]
[1644062483209,0.168628,41500.0,41499.0,0.07270145]
[1644062484004,0.228882,41500.0,41499.0,0.07270145]
[1644062484203,0.228882,41500.0,41498.0,0.22058581]
[1644062484204,0.228882,41500.0,41498.0,0.29328726]
[1644062485004,0.0481,41500.0,41498.0,0.29328726]
[1644062487252,0.0481,41500.0,41499.0,0.26852358]
[1644062487453,0.0481,41500.0,41498.0,0.29328726]
[1644062487654,0.060257,41502.0,41498.0,0.29328726]
[1644062487853,0.060257,41502.0,41501.0,0.0954029]
[1644062488855,0.060257,41502.0,41501.0,0.02270145]
[1644062489053,0.060257,41502.0,41501.0,0.0954029]
[1644062489455,0.00034851,41503.0,41502.0,0.15]
[1644062489655,0.060245,41505.0,41502.0,0.15]
[1644062489656,0.00034851,41504.0,41502.0,0.15]
[1644062489858,0.06059351,41505.0,41502.0,0.15]
[1644062490057,0.060245,41505.0,41504.0,0.0954029]
[1644062490259,0.06059511,41505.0,41504.0,0.0954029]
[1644062490457,0.060245,41505.0,41504.0,0.0954029]
[1644062490706,0.060241,41507.0,41504.0,0.0954029]
[1644062490908,0.00035011,41506.0,41505.0,0.2324825]
[1644062491112,0.06059111,41507.0,41505.0,0.2324825]
[1644062491509,0.06059111,41507.0,41506.0,0.04788436]
[1644062491808,0.060241,41507.0,41506.0,0.04788436]
[1644062497657,0.00035011,41509.0,41506.0,0.15]
[1644062497956,0.18108111,41510.0,41508.0,0.07270145]
[1644062498211,0.00035011,41509.0,41508.0,0.07270145]
[1644062498413,0.18108111,41510.0,41508.0,0.12058581]
[1644062498816,0.18108111,41510.0,41509.0,0.2454029]
[1644062499012,0.180731,41510.0,41509.0,0.2454029]
[1644062500615,0.180731,41510.0,41509.0,0.02270145]
[1644062503053,0.12082639,41511.0,41509.0,0.02270145]
[1644062504254,0.12082639,41511.0,41509.0,0.0954029]
[1644062504753,0.18106539,41511.0,41509.0,0.0954029]
[1644062506609,0.06058711,41511.0,41509.0,0.0954029]
[1644062507406,0.06058711,41511.0,41510.0,0.0726111]
[1644062507606,0.060237,41511.0,41510.0,0.0726111]
[1644062510156,0.360237,41511.0,41507.0,0.00068217]
[1644062510357,0.721291,41509.0,41507.0,0.00068217]
[1644062510553,0.3481,41508.0,41507.0,0.00068217]
[1644062510753,0.0481,41508.0,41507.0,0.00068217]
[1644062511356,0.060252,41507.0,41504.0,0.0226111]
[1644062511554,0.0481,41506.0,41505.0,0.00068217]
[1644062512252,0.1686,41506.0,41497.0,1.0461]
[1644062512454,0.61484757,41506.0,41504.0,0.19788436]
[1644062512653,0.73534793,41506.0,41503.0,0.00068219]
[1644062512853,0.73534793,41506.0,41505.0,0.0226111]
[1644062513704,0.67509593,41506.0,41505.0,0.0226111]
[1644062513905,0.67509593,41506.0,41503.0,0.00068219]
[1644062514303,0.67509593,41506.0,41504.0,0.0226111]
[1644062514508,0.26242624,41505.0,41504.0,0.0226111]
[1644062514705,0.36149936,41506.0,41497.0,0.75421292]
[1644062514903,0.37786066,41505.0,41503.0,0.0006822]
[1644062515104,0.43810966,41505.0,41503.0,0.0006822]
[1644062515503,0.49835866,41505.0,41503.0,0.0006822]
[1644062515903,0.49835866,41505.0,41501.0,0.0226111]
[1644062516104,0.120498,41504.0,41502.0,0.00068221]
[1644062516304,0.0481,41503.0,41502.0,0.00068221]
[1644062516704,0.31117189,41503.0,41502.0,0.00068221]
[1644062517159,0.06025,41502.0,41499.0,0.01821294]
[1644062517355,0.0481,41501.0,41500.0,0.00068477]
[1644062517753,0.01253949,41501.0,41500.0,0.00068477]
[1644062518253,0.07278949,41501.0,41498.0,0.0226111]
[1644062518452,0.07278949,41501.0,41498.0,0.02329589]
[1644062519254,0.07278949,41501.0,41498.0,0.22118025]
[1644062519456,0.07278949,41501.0,41498.0,0.0226111]
[1644062519661,0.07278949,41501.0,41498.0,0.22049546]
[1644062519856,0.13303935,41501.0,41498.0,0.22049546]
[1644062520056,0.060253,41500.0,41498.0,0.0226111]
[1644062520255,0.36860817,41499.0,41497.0,0.0006848]
[1644062520456,0.11820951,41498.0,41497.0,0.0006848]
[1644062520708,0.16630951,41498.0,41496.0,1.4]
[1644062520908,0.16630951,41498.0,41496.0,1.40068212]
[1644062521308,0.22657017,41498.0,41496.0,1.40068212]
[1644062521508,0.06026,41497.0,41496.0,1.40068212]
[1644062521708,0.10836,41497.0,41496.0,1.40068212]
[1644062522009,0.10836,41497.0,41496.0,1.59788436]
[1644062522609,0.10836,41497.0,41496.0,1.4]
[1644062524553,0.10836,41497.0,41496.0,1.39975769]
[1644062524954,0.3744196,41497.0,41496.0,1.39975769]
[1644062526355,0.37430553,41497.0,41496.0,1.39975769]
[1644062526555,0.44959116,41497.0,41496.0,1.39975769]
[1644062526757,1.25039116,41497.0,41496.0,1.39975769]
[1644062527158,1.42811105,41497.0,41496.0,1.03805069]
[1644062527359,1.40072216,41497.0,41496.0,0.67636569]
[1644062527555,1.40072216,41497.0,41494.0,0.0006823]
[1644062527755,0.6008,41495.0,41494.0,0.0006823]
[1644062527955,0.20428763,41488.0,41487.0,0.05]
[1644062528204,0.6008,41488.0,41487.0,0.0226111]
[1644062529104,0.88903838,41488.0,41487.0,0.0226111]
[1644062529303,1.00959838,41488.0,41487.0,0.0226111]
[1644062529504,1.28533574,41488.0,41487.0,0.0226111]
[1644062530104,1.33343574,41488.0,41487.0,0.0226111]
[1644062531956,0.76946,41488.0,41487.0,0.0226111]
[1644062532757,1.0410596,41488.0,41487.0,0.0226111]
[1644062534060,1.3348794,41488.0,41487.0,0.0226111]
[1644062534458,1.4348794,41488.0,41487.0,0.0226111]
[1644062544108,1.3848794,41488.0,41487.0,0.0226111]
[1644062544309,1.3348794,41488.0,41487.0,0.0226111]
[1644062549456,0.7340794,41488.0,41487.0,0.0226111]
[1644062552007,0.7340794,41488.0,41487.0,0.02252458]
[1644062552209,0.4624798,41488.0,41487.0,0.02252458]
[1644062552411,0.16866,41488.0,41487.0,0.02252458]
[1644062553009,0.42605934,41488.0,41487.0,0.02252458]
[1644062553313,0.16866,41488.0,41487.0,0.02252458]
[1644062556154,0.18084127,41489.0,41487.0,0.02252458]
[1644062556356,0.0481,41488.0,41487.0,0.67311858]
[1644062557255,0.36962971,41488.0,41487.0,0.67311858]
[1644062557457,0.16866,41488.0,41487.0,0.67311858]
[1644062558126,0.43333011,41488.0,41487.0,0.67311858]
[1644062558534,0.68454123,41488.0,41487.0,0.67311858]
[1644062559727,0.16866,41488.0,41487.0,0.67311858]
[1644062560827,0.36603552,41488.0,41487.0,0.67311858]
[1644062561627,0.36603552,41488.0,41487.0,0.67295167]
[1644062561864,0.6228537,41488.0,41487.0,0.67295167]
[1644062562260,0.3652649,41488.0,41487.0,0.67295167]
[1644062563762,0.16788938,41488.0,41487.0,0.67295167]
[1644062563964,0.16788938,41488.0,41487.0,0.72083603]
[1644062566413,0.16788938,41488.0,41487.0,0.67295167]
[1644062575008,0.16780229,41488.0,41487.0,0.67295167]
[1644062576008,0.16780229,41488.0,41487.0,0.74530934]
[1644062584111,0.42685062,41488.0,41487.0,0.74530934]
[1644062585762,0.16780229,41488.0,41487.0,0.74530934]
[1644062586263,0.30140198,41490.0,41489.0,0.32383145]
[1644062586465,0.34950198,41490.0,41489.0,0.32383145]
[1644062590211,0.34950198,41490.0,41489.0,0.30883145]
[1644062592060,0.34910359,41490.0,41489.0,0.30883145]
[1644062592659,0.35119575,41490.0,41489.0,0.30883145]
[1644062593062,0.35119575,41490.0,41489.0,0.38118912]
[1644062597216,0.35052221,41490.0,41489.0,0.38118912]
[1644062599016,0.35052221,41490.0,41489.0,0.36618912]
[1644062599864,0.34552221,41490.0,41489.0,0.36618912]
[1644062600562,0.61426198,41490.0,41489.0,0.36618912]
[1644062601966,0.34552221,41490.0,41489.0,0.36618912]
[1644062603711,0.34552221,41490.0,41489.0,0.29383145]
[1644062603910,0.28524421,41490.0,41489.0,0.29383145]
[1644062604511,0.28524421,41490.0,41489.0,0.36618912]
[1644062605317,0.28524421,41490.0,41489.0,0.29383145]
[1644062605715,0.28524421,41490.0,41489.0,0.36618912]
[1644062607265,0.28524421,41490.0,41489.0,0.29383145]
[1644062607463,0.28524421,41490.0,41489.0,0.36618912]
[1644062610714,0.28524421,41490.0,41489.0,0.36425703]
[1644062612917,0.16468121,41490.0,41489.0,0.29189936]
[1644062615163,0.16468121,41490.0,41489.0,0.36425703]
[1644062615564,0.1186,41498.0,41491.0,0.65]
[1644062615771,0.1186,41498.0,41497.0,0.02235767]
[1644062615772,0.05,41498.0,41497.0,0.02235767]
[1644062616166,0.1,41499.0,41497.0,0.02235767]
[1644062616463,0.05,41498.0,41497.0,0.02235767]
[1644062616664,0.05,41500.0,41497.0,0.02235767]
[1644062616864,0.05,41498.0,41497.0,0.02235767]
[1644062617064,0.05,41500.0,41497.0,0.02235767]
[1644062617364,0.44711525,41501.0,41498.0,0.07235767]
[1644062617365,0.4,41501.0,41498.0,0.07235767]
[1644062617764,0.3,41501.0,41500.0,0.02235767]
[1644062618216,0.55948164,41501.0,41500.0,0.02235767]
[1644062618419,0.61974064,41501.0,41498.0,0.07235767]
[1644062618817,0.61974064,41501.0,41497.0,0.02235767]
[1644062619015,0.61974064,41501.0,41500.0,0.02235767]
[1644062619016,0.71974064,41501.0,41500.0,0.02235767]
[1644062619217,0.65948164,41501.0,41500.0,0.02235767]
[1644062619417,0.71974164,41501.0,41500.0,0.02235767]
[1644062619619,0.46026,41501.0,41500.0,0.02235767]
[1644062619818,0.36026,41501.0,41500.0,0.02235767]
[1644062630060,0.06026,41501.0,41500.0,0.02235767]
[1644062630461,0.31847339,41501.0,41500.0,0.02235767]
[1644062631661,0.06026,41501.0,41500.0,0.02235767]
[1644062632062,0.06026,41501.0,41500.0,0.24471534]
[1644062632665,0.06026,41501.0,41500.0,0.09471534]
[1644062632863,0.06026,41501.0,41500.0,0.2925997]
[1644062633112,0.06026,41501.0,41500.0,0.02235767]
[1644062634017,0.31967522,41501.0,41500.0,0.02235767]
[1644062636621,0.31967522,41501.0,41500.0,0.17235767]
[1644062636868,0.31967522,41501.0,41500.0,0.02235767]
[1644062636869,0.36777522,41501.0,41500.0,0.02235767]
[1644062638664,0.36777522,41501.0,41500.0,0.17235767]
[1644062638865,0.36777522,41501.0,41500.0,0.02235767]
[1644062639169,0.36777522,41501.0,41500.0,0.02225293]
[1644062640165,0.36777522,41501.0,41500.0,0.25696372]
[1644062641017,0.10836,41501.0,41500.0,0.25696372]
[1644062643020,0.37217447,41501.0,41500.0,0.25696372]
[1644062643219,0.10836,41501.0,41500.0,0.25696372]
[1644062651014,0.36672106,41501.0,41500.0,0.25696372]
[1644062651217,0.10836,41501.0,41500.0,0.25696372]
[1644062651868,0.37392577,41501.0,41500.0,0.25696372]
[1644062654770,0.37392577,41501.0,41500.0,0.23471079]
[1644062655815,0.15264209,41501.0,41500.0,0.23471079]
[1644062656819,0.15836,41501.0,41500.0,0.23471079]
[1644062657219,0.31944821,41501.0,41500.0,0.23471079]
[1644062660668,0.15836,41501.0,41500.0,0.23471079]
[1644062662769,0.43161093,41501.0,41500.0,0.23471079]
[1644062663713,0.48161093,41501.0,41500.0,0.23471079]
[1644062667567,0.48161093,41501.0,41500.0,0.25696372]
[1644062667773,0.48161093,41501.0,41500.0,0.23471079]
[1644062669370,0.47161093,41501.0,41500.0,0.23471079]
[1644062671017,0.19836,41501.0,41500.0,0.23471079]
[1644062673122,0.46607012,41501.0,41500.0,0.23471079]
[1644062675869,0.56607012,41501.0,41500.0,0.23471079]
[1644062682275,0.46607012,41501.0,41500.0,0.23471079]
[1644062685377,0.41607012,41501.0,41500.0,0.23471079]
[1644062685616,0.37607012,41501.0,41500.0,0.23471079]
[1644062689021,0.10836,41501.0,41500.0,0.23471079]
[1644062690082,0.10836,41501.0,41500.0,0.23464945]
[1644062690881,0.20836,41501.0,41500.0,0.23464945]
[1644062691485,0.47214069,41501.0,41500.0,0.23464945]
[1644062695219,0.20836,41501.0,41500.0,0.23464945]
[1644062696623,0.20836,41501.0,41500.0,0.30690238]
[1644062697077,0.20836,41501.0,41500.0,0.23464945]
[1644062697478,0.4710293,41501.0,41500.0,0.23464945]
[1644062697879,0.4710293,41501.0,41500.0,0.30690238]
[1644062700381,0.4710293,41501.0,41500.0,0.23464945]
[1644062700622,0.4710293,41501.0,41500.0,0.30690238]
[1644062701021,0.20836,41501.0,41500.0,0.30690238]
[1644062701526,0.10836,41501.0,41500.0,0.30690238]
[1644062702322,0.10836,41501.0,41500.0,0.23464945]
[1644062702522,0.10836,41501.0,41500.0,0.28253381]
[1644062703126,0.0480354,41501.0,41500.0,0.30690238]
[1644062703322,0.1082974,41501.0,41500.0,0.28253381]
[1644062703524,0.0480354,41501.0,41500.0,0.30690238]
[1644062703823,0.0480354,41501.0,41500.0,0.23464945]
[1644062704223,0.1082964,41501.0,41500.0,0.23464945]
[1644062704470,0.1082964,41501.0,41500.0,0.43253381]
[1644062705671,0.1082964,41501.0,41500.0,0.38464945]
[1644062706477,0.1082964,41501.0,41500.0,0.36580108]
[1644062706678,0.29610042,41502.0,41500.0,0.43805401]
[1644062706679,0.00035023,41502.0,41500.0,0.43805401]
[1644062706873,0.00035023,41503.0,41500.0,0.43805401]
[1644062707172,0.00069798,41504.0,41502.0,0.02225293]
[1644062707173,0.05069798,41504.0,41502.0,0.02225293]
[1644062707374,0.00069798,41504.0,41503.0,0.12013729]
[1644062707572,0.00035113,41504.0,41503.0,0.12013729]
[1644062707873,0.06129812,41505.0,41503.0,0.12013729]
[1644062708118,0.06094699,41505.0,41503.0,0.12013729]
[1644062708319,0.06129812,41505.0,41503.0,0.12013729]
[1644062708719,0.06060013,41505.0,41503.0,0.12013729]
[1644062708922,0.06060013,41505.0,41503.0,0.07225293]
[1644062710423,0.06060013,41505.0,41503.0,0.12013729]
[1644062713866,0.06060013,41505.0,41503.0,0.07225293]
[1644062714067,0.06060013,41505.0,41503.0,0.12013729]
[1644062714264,0.06060013,41505.0,41503.0,0.07225293]
[1644062714470,0.06060013,41505.0,41503.0,0.12013729]
[1644062715918,0.06060013,41505.0,41503.0,0.07225293]
[1644062716318,0.06060013,41505.0,41503.0,0.12013729]
[1644062717321,0.06060013,41505.0,41503.0,0.07225293]
[1644062717519,0.06060013,41505.0,41503.0,0.12013729]
[1644062718319,0.06060013,41505.0,41503.0,0.07225293]
[1644062722273,0.06060013,41505.0,41503.0,0.72259693]
[1644062723320,0.0481,41504.0,41503.0,0.72259693]
[1644062723520,0.10835185,41504.0,41503.0,0.74465314]
[1644062724122,0.15835185,41504.0,41503.0,0.650344]
[1644062724324,0.52445824,41504.0,41503.0,0.650344]
[1644062724622,0.57445824,41504.0,41503.0,0.650344]
[1644062724825,0.67445824,41504.0,41503.0,0.650344]
[1644062725922,0.21860585,41504.0,41503.0,0.650344]
[1644062726122,0.48843539,41504.0,41503.0,0.650344]
[1644062726322,0.53843539,41504.0,41503.0,0.650344]
[1644062727767,0.63843539,41504.0,41503.0,0.650344]
[1644062729368,0.71922706,41504.0,41503.0,0.650344]
[1644062731016,0.63843539,41504.0,41503.0,0.650344]
[1644062734967,0.43843539,41504.0,41503.0,0.650344]
[1644062735769,0.16860585,41504.0,41503.0,0.650344]
[1644062736370,0.26860585,41504.0,41503.0,0.650344]
[1644062736670,0.31860585,41504.0,41503.0,0.650344]
[1644062736869,0.26860585,41504.0,41503.0,0.650344]
[1644062737472,0.5309631,41504.0,41503.0,0.650344]
[1644062738821,0.26860585,41504.0,41503.0,0.650344]
[1644062740625,0.53720801,41504.0,41503.0,0.650344]
[1644062740824,0.26860585,41504.0,41503.0,0.650344]
[1644062742470,0.26860585,41504.0,41503.0,0.72249857]
[1644062742670,0.17050585,41504.0,41503.0,0.72249857]
[1644062742873,0.12050585,41504.0,41503.0,0.72249857]
[1644062743269,0.12050585,41504.0,41503.0,0.69822836]
[1644062743972,0.12050585,41504.0,41503.0,0.77038293]
[1644062744172,0.12050585,41504.0,41503.0,0.72249857]
[1644062747128,0.16860585,41504.0,41503.0,0.72249857]
[1644062747529,0.16860585,41504.0,41503.0,0.650344]
[1644062747728,0.16860585,41504.0,41503.0,0.65027966]
[1644062749131,0.21860585,41504.0,41503.0,0.65027966]
[1644062750675,0.108354,41504.0,41503.0,0.65027966]
[1644062752671,0.158354,41504.0,41503.0,0.65027966]
[1644062753119,0.108354,41504.0,41503.0,0.65027966]
[1644062756027,0.3757556,41504.0,41503.0,0.65027966]
[1644062756628,0.7,41502.0,41498.0,0.01911364]
[1644062756891,1.14953142,41501.0,41498.0,0.01911364]
[1644062757086,0.180837,41500.0,41498.0,0.01911364]
[1644062757284,0.3981,41499.0,41498.0,0.01911364]
[1644062757680,0.75494402,41499.0,41498.0,0.01911364]
[1644062758082,0.060281,41498.0,41493.0,0.00018952]
[1644062758282,0.06583685,41494.0,41492.0,0.00087346]
[1644062758486,0.0481,41493.0,41492.0,0.00068394]
[1644062758683,0.28654778,41493.0,41492.0,0.00068394]
[1644062758883,0.57715624,41493.0,41492.0,0.00068394]
[1644062759282,0.67715624,41493.0,41491.0,0.00018952]
[1644062759484,0.54655219,41492.0,41490.0,0.02283849]
[1644062759784,0.3755052,41491.0,41490.0,0.00068392]
[1644062760385,0.3755052,41491.0,41490.0,0.02302801]
[1644062760627,0.3755052,41491.0,41490.0,0.02215457]
[1644062762221,0.108379,41491.0,41490.0,0.09430914]
[1644062765573,0.108379,41491.0,41490.0,0.02215457]
[1644062766180,0.108379,41491.0,41490.0,0.09430914]
[1644062767076,0.10975436,41491.0,41490.0,0.09430914]
[1644062767477,0.10975436,41491.0,41490.0,0.09449866]
[1644062767875,0.10975436,41491.0,41490.0,0.09430914]
[1644062768321,0.10975436,41491.0,41490.0,0.09449866]
[1644062768522,0.10975436,41491.0,41490.0,0.02215457]
[1644062771522,0.37145386,41491.0,41490.0,0.02215457]
[1644062771971,0.37239392,41491.0,41490.0,0.02215457]
[1644062773672,0.11069442,41491.0,41490.0,0.09430914]
[1644062774074,0.11069442,41491.0,41490.0,0.09449866]
[1644062774673,0.11069442,41491.0,41490.0,0.02234409]
[1644062774874,0.11069442,41491.0,41490.0,0.09430914]
[1644062775075,0.11069442,41491.0,41490.0,0.09449866]
[1644062777625,0.11019573,41491.0,41490.0,0.09449866]
[1644062778426,0.11019573,41491.0,41490.0,0.02234409]
[1644062778625,0.11019573,41491.0,41490.0,0.02215457]
[1644062779674,0.11019573,41491.0,41490.0,0.02206851]
[1644062781376,0.11019573,41491.0,41490.0,0.09413702]
[1644062781976,0.11019573,41491.0,41490.0,0.09432654]
[1644062782376,0.11019573,41491.0,41490.0,0.02225803]
[1644062783518,0.11019573,41491.0,41490.0,0.09432654]
[1644062783919,0.11019573,41491.0,41490.0,0.02225803]
[1644062784123,0.11019573,41491.0,41490.0,0.02206851]
[1644062784920,0.11019573,41491.0,41490.0,0.09413702]
[1644062786123,0.11019573,41491.0,41490.0,0.02206851]
[1644062787376,0.37209623,41491.0,41490.0,0.02206851]
[1644062789475,0.42209623,41491.0,41490.0,0.02206851]
[1644062789877,0.12055977,41490.0,41488.0,0.00068347]
[1644062790177,0.43301419,41489.0,41488.0,0.00068347]
[1644062790823,0.43301419,41489.0,41487.0,0.00018952]
[1644062791023,0.43301419,41489.0,41486.0,0.022752]
[1644062791828,0.31290668,41487.0,41486.0,0.022752]
[1644062792124,0.36100668,41487.0,41486.0,0.02206851]
[1644062792327,0.36100668,41487.0,41486.0,0.02225803]
[1644062793125,0.6331656,41487.0,41486.0,0.02225803]
[1644062793329,0.6331656,41487.0,41486.0,0.02206851]
[1644062793625,0.05,41486.0,41485.0,0.02206851]
[1644062793827,0.0981,41486.0,41485.0,0.02225803]
[1644062794226,0.0981,41486.0,41485.0,0.00018952]
[1644062794481,0.060293,41485.0,41482.0,0.00018952]
[1644062794677,0.0481,41484.0,41483.0,0.00068404]
[1644062794877,0.42991331,41484.0,41483.0,0.00068404]
[1644062795073,0.7,41483.0,41476.0,0.00324207]
[1644062795274,0.6008,41481.0,41473.0,0.10324207]
[1644062795474,0.04379688,41474.0,41472.0,0.0011]
[1644062796072,0.120606,41475.0,41472.0,0.0011]
[1644062796273,0.120606,41475.0,41474.0,0.04999999]
[1644062796575,0.39904758,41475.0,41472.0,0.0011]
[1644062796772,0.060299,41474.0,41472.0,0.0011]
[1644062796972,0.0481,41473.0,41472.0,0.0011]
[1644062797774,0.0481,41473.0,41472.0,0.04898436]
[1644062800730,0.0481,41473.0,41472.0,0.0011]
[1644062801979,0.04908309,41473.0,41472.0,0.0011]
[1644062803580,0.04898678,41473.0,41472.0,0.0011]
[1644062804987,0.32740669,41473.0,41472.0,0.0011]
[1644062806824,0.04898678,41473.0,41472.0,0.0011]
[1644062807824,0.04889737,41473.0,41472.0,0.0011]
[1644062808026,0.30976783,41473.0,41472.0,0.0011]
[1644062809487,0.91056783,41473.0,41472.0,0.0011]
[1644062809687,1.01056783,41473.0,41472.0,0.0011]
[1644062810097,0.7,41472.0,41468.0,0.0011]
[1644062810292,0.14051255,41471.0,41468.0,0.0011]
[1644062810490,0.14051255,41471.0,41470.0,0.00070437]
[1644062810491,0.46812563,41471.0,41470.0,0.00070437]
[1644062810685,1.41892563,41471.0,41470.0,0.00070437]
[1644062810885,1.51892563,41471.0,41470.0,0.00070437]
[1644062811486,1.51892563,41471.0,41469.0,0.00019305]
[1644062811687,0.9008,41470.0,41468.0,0.00129305]
[1644062811886,0.94225214,41469.0,41468.0,0.00129305]
[1644062812286,1.04225214,41469.0,41468.0,0.00129305]
[1644062812486,1.36655769,41469.0,41468.0,0.00129305]
[1644062812885,1.86655769,41469.0,41468.0,0.00129305]
[1644062813525,2.03220747,41469.0,41468.0,0.00129305]
[1644062813926,1.86655769,41469.0,41468.0,0.00129305]
[1644062814826,1.36655769,41469.0,41468.0,0.00129305]
[1644062815232,1.04225214,41469.0,41468.0,0.00129305]
[1644062817077,1.54323108,41469.0,41468.0,0.00129305]
[1644062817479,1.59323108,41469.0,41468.0,0.00019305]
[1644062817782,2.25889337,41469.0,41467.0,0.00129305]
[1644062817976,1.65809337,41469.0,41468.0,0.00019305]
[1644062818176,0.16566229,41468.0,41467.0,0.00129305]
[1644062818376,1.1489,41468.0,41467.0,0.00129305]
[1644062818577,1.31456229,41468.0,41467.0,0.00129305]
[1644062818778,1.41456229,41468.0,41467.0,0.00129305]
[1644062826077,1.47489929,41468.0,41466.0,0.0011]
[1644062826275,1.13303896,41467.0,41466.0,0.0011]
[1644062826473,1.13303896,41467.0,41455.0,0.00306948]
[1644062826474,0.7,41466.0,41455.0,0.00306948]
[1644062826675,0.6008,41462.0,41455.0,0.00306948]
[1644062826974,0.6008,41462.0,41453.0,0.05]
[1644062826975,1.29153736,41462.0,41453.0,0.05]
[1644062827973,1.35187136,41462.0,41455.0,0.04999999]
[1644062828233,2.35187136,41462.0,41455.0,0.04999999]
[1644062828629,2.35187136,41462.0,41453.0,0.05]
[1644062829631,2.35187136,41462.0,41459.0,0.00046925]
[1644062830633,2.35187136,41462.0,41453.0,0.05]
[1644062830836,2.35187136,41462.0,41459.0,0.00076725]
[1644062831881,2.35378142,41462.0,41456.0,0.04999999]
[1644062832077,2.35378142,41462.0,41459.0,0.00076725]
[1644062832676,1.85378142,41462.0,41459.0,0.00076725]
[1644062833077,1.85378142,41462.0,41457.0,0.04999999]
[1644062833278,1.85378142,41462.0,41459.0,0.00076725]
[1644062834279,1.85378142,41462.0,41457.0,0.04999999]
[1644062834479,1.85378142,41462.0,41459.0,0.00076725]
[1644062835181,1.82860501,41462.0,41459.0,0.00076725]
[1644062835381,1.80378142,41462.0,41457.0,0.04999999]
[1644062835624,1.80378142,41462.0,41459.0,0.00076725]
[1644062836625,1.80378142,41462.0,41457.0,0.04999999]
[1644062837025,1.80378142,41462.0,41454.0,0.05299999]
[1644062837226,1.85378142,41462.0,41454.0,0.05299999]
[1644062837627,1.58373176,41462.0,41458.0,0.04999999]
[1644062837831,1.58373176,41462.0,41461.0,0.06999999]
[1644062837832,0.11034406,41462.0,41461.0,0.06999999]
[1644062838029,0.11034406,41462.0,41461.0,0.34433409]
[1644062838230,0.11034406,41462.0,41461.0,0.34641162]
[1644062838429,0.11034406,41462.0,41461.0,0.36999999]
[1644062838430,0.00191006,41462.0,41461.0,0.36999999]
[1644062838830,0.00191006,41462.0,41461.0,0.06999999]
[1644062839476,0.20010242,41466.0,41461.0,0.06999999]
[1644062839674,0.20010242,41466.0,41465.0,0.04999999]
[1644062839876,0.28119075,41466.0,41465.0,0.04999999]
[1644062840676,0.28119075,41466.0,41465.0,0.02979999]
[1644062841278,0.08108833,41466.0,41465.0,0.02979999]
[1644062841674,0.14139533,41466.0,41465.0,0.02979999]
[1644062841875,0.14139533,41466.0,41465.0,0.01506857]
[1644062848480,0.18949533,41466.0,41465.0,0.01506857]
[1644062848682,0.18949533,41466.0,41465.0,0.00019307]
[1644062848880,0.18949533,41466.0,41464.0,0.00019307]
[1644062849087,0.060315,41465.0,41463.0,0.00087713]
[1644062849281,0.0481,41464.0,41463.0,0.00068406]
[1644062849483,0.0481,41464.0,41463.0,0.00087713]
[1644062850081,0.0481,41464.0,41463.0,0.00019307]
[1644062850282,0.0481,41464.0,41462.0,0.01506857]
[1644062850483,0.060316,41463.0,41462.0,0.01506857]
[1644062851130,0.108416,41463.0,41462.0,0.01506857]
[1644062851532,0.108416,41463.0,41462.0,0.00019307]
[1644062851735,0.108416,41463.0,41461.0,0.02]